bitfinex-derivatives/quotes_ETHF0:USTF0_20260310
["timestamp","ask_amount","ask_price","bid_price","bid_amount"]
[1773137555699,1.58140401,2063.7,2063.0,0.29531385]
[1773137556101,1.58140401,2063.7,2062.9,1.87840324]
[1773137556900,1.58140401,2063.7,2062.9,2.16247399]
[1773137558304,1.58140401,2063.7,2062.9,1.87840324]
[1773137558605,1.58140401,2063.7,2062.9,2.16306043]
[1773137559006,1.58140401,2063.7,2062.8,0.28972848]
[1773137559406,1.58694694,2063.5,2062.8,0.28972848]
[1773137559607,8.46563324,2064.0,2062.8,0.28972848]
[1773137559608,1.58694694,2063.3,2062.8,0.00456452]
[1773137559808,1.58694694,2063.3,2062.7,0.5278526]
[1773137560298,1.58694694,2063.3,2062.7,0.24238]
[1773137560703,1.55977938,2063.1,2062.7,0.00402331]
[1773137561005,1.56374608,2063.1,2062.7,0.53212706]
[1773137561201,1.55977938,2063.2,2062.8,1.67407256]
[1773137562306,1.56546471,2063.2,2062.8,1.67407256]
[1773137563206,1.56546471,2063.2,2062.7,3.55649911]
[1773137563407,1.56546471,2063.2,2062.7,1.67809587]
[1773137563710,0.00568533,2063.2,2062.9,1.87840324]
[1773137563907,1.55977938,2063.4,2063.0,1.67407256]
[1773137564809,0.20394784,2063.4,2063.1,1.67407256]
[1773137565006,1.55977938,2063.6,2063.1,1.67407256]
[1773137565400,1.55977938,2063.5,2062.9,1.67407256]
[1773137565605,1.55977938,2063.5,2062.8,10.18407256]
[1773137565807,1.55977938,2063.5,2063.0,1.67407256]
[1773137566006,1.56520442,2063.5,2063.0,1.67407256]
[1773137567404,0.00542504,2063.5,2063.0,1.67407256]
[1773137567802,1.56520442,2063.5,2063.0,1.67407256]
[1773137573615,1.76798808,2063.7,2063.2,1.6707469]
[1773137574716,1.77244583,2063.7,2063.2,1.6707469]
[1773137580018,1.77244583,2063.7,2063.1,1.9130869]
[1773137582422,1.77244583,2063.7,2063.2,1.6707469]
[1773137585424,1.77244583,2063.7,2063.1,1.85537192]
[1773137585825,1.65411833,2063.5,2063.0,1.61303192]
[1773137589230,1.65411833,2063.5,2063.0,1.85537192]
[1773137593835,1.65411833,2063.5,2063.1,1.61303192]
[1773137595729,1.65411833,2063.5,2063.0,8.97934]
[1773137595935,1.5232137,2063.0,2062.4,1.61303192]
[1773137596231,1.5232137,2062.7,2062.2,1.61303192]
[1773137597028,1.5232137,2062.7,2062.2,1.61904327]
[1773137597832,1.65411833,2062.5,2062.1,1.89234292]
[1773137598033,1.65411833,2062.1,2061.5,1.61303192]
[1773137599037,1.6595735,2062.1,2061.5,1.61811036]
[1773137600238,1.6595735,2062.1,2061.5,0.00507844]
[1773137603442,1.6595735,2062.1,2060.9,1.61303192]
[1773137603746,1.5146483,2061.9,2060.9,1.61303192]
[1773137604443,1.5146483,2061.9,2060.9,1.61776142]
[1773137612650,1.5146483,2061.9,2060.9,0.0047295]
[1773137612853,1.51239479,2061.7,2060.9,0.0047295]
[1773137613049,1.50766529,2061.3,2060.4,0.65933217]
[1773137613251,1.50766529,2061.3,2060.4,2.27236409]
[1773137613450,1.50766529,2061.3,2060.5,1.61303192]
[1773137614048,1.50766529,2061.3,2060.5,1.61749656]
[1773137614855,1.50766529,2061.3,2060.5,0.00446464]
[1773137615452,1.50766529,2061.3,2060.5,1.69214727]
[1773137616955,1.29248275,2061.1,2060.5,0.00446464]
[1773137617345,1.29248275,2061.1,2060.5,1.69214727]
[1773137618352,1.28186969,2061.4,2060.5,1.69214727]
[1773137619755,1.2804952,2061.3,2060.5,1.69214727]
[1773137621250,1.27432586,2061.5,2060.5,1.69214727]
[1773137621954,1.27432586,2061.5,2060.6,1.68768263]
[1773137624254,1.34568988,2061.7,2060.6,1.68768263]
[1773137627259,1.34568988,2061.7,2060.7,1.68768263]
[1773137627458,1.38776552,2061.4,2060.7,1.68768263]
[1773137628162,1.38776552,2061.4,2060.6,1.68768263]
[1773137639263,1.32997528,2061.2,2060.6,1.68768263]
[1773137641964,1.41972439,2061.5,2060.6,1.68768263]
[1773137642165,2.7328998,2061.8,2060.8,1.63667438]
[1773137642364,6.23607446,2061.7,2060.8,1.63667438]
[1773137642566,1.41500072,2062.0,2060.8,1.63667438]
[1773137642864,1.42997996,2061.8,2060.8,1.63667438]
[1773137643065,1.42997996,2061.8,2060.9,1.63667438]
[1773137643464,0.24249,2061.9,2060.9,1.63667438]
[1773137643465,1.42637406,2061.6,2060.9,1.63667438]
[1773137644464,1.42271061,2061.8,2060.9,1.63667438]
[1773137644661,1.42271061,2061.7,2060.9,1.63667438]
[1773137644966,1.49054277,2062.0,2060.9,1.63667438]
[1773137645162,1.49054277,2061.8,2060.9,1.63667438]
[1773137645765,1.48537506,2061.6,2060.9,1.63667438]
[1773137647367,10.3665521,2062.0,2060.9,1.63667438]
[1773137647368,5.4630838,2062.0,2060.9,1.63667438]
[1773137647567,1.4435317,2061.8,2060.9,1.63667438]
[1773137649772,1.42961173,2062.0,2060.9,1.63667438]
[1773137650171,1.43004691,2062.5,2061.4,1.64652545]
[1773137650469,1.43004691,2062.3,2061.5,1.64652545]
[1773137650974,1.41417258,2062.1,2061.5,1.64652545]
[1773137651172,1.41783781,2062.1,2061.5,1.64652545]
[1773137651975,1.41783781,2062.1,2061.2,1.64652545]
[1773137652375,1.40359224,2061.9,2061.2,1.64652545]
[1773137653477,1.38805976,2061.7,2060.7,1.64652545]
[1773137653873,1.38805976,2061.7,2060.7,1.88914545]
[1773137655876,1.38456934,2061.9,2060.9,1.64652545]
[1773137656477,1.38636871,2062.1,2061.1,1.64652545]
[1773137659877,1.38636871,2062.1,2061.0,0.24258]
[1773137659878,1.62881871,2062.1,2060.9,1.64652545]
[1773137660273,1.38636871,2062.1,2060.9,1.88911545]
[1773137665084,1.38636871,2062.1,2061.3,1.64652545]
[1773137670384,1.38030185,2062.5,2061.7,1.64652545]
[1773137671290,1.38527207,2062.5,2061.7,1.64652545]
[1773137672689,1.62769207,2062.5,2061.6,1.64652545]
[1773137675192,1.62769207,2062.5,2061.4,1.54924163]
[1773137676292,1.51992342,2062.3,2061.4,1.54924163]
[1773137676688,1.27743207,2062.4,2061.4,1.54924163]
[1773137679089,1.27743207,2062.4,2061.6,1.54924163]
[1773137679293,1.14725989,2062.5,2061.6,1.54924163]
[1773137679991,1.1472167,2063.1,2062.0,1.54924163]
[1773137680192,1.1472167,2063.1,2062.2,1.54924163]
[1773137681093,1.1528222,2063.1,2062.2,1.55413718]
[1773137683591,0.0056055,2063.1,2062.2,1.55413718]
[1773137683799,1.22934963,2063.1,2062.2,1.55413718]
[1773137699619,1.17377514,2062.9,2062.2,1.55413718]
[1773137703527,1.17124518,2062.5,2062.2,1.55413718]
[1773137703731,3.45643627,2062.4,2061.8,1.68702065]
[1773137704129,1.57637008,2062.4,2061.8,1.68702065]
[1773137704732,1.57637008,2062.7,2062.1,1.68702065]
[1773137704931,1.57637008,2062.9,2062.1,1.68702065]
[1773137705332,1.57637008,2062.9,2062.3,1.68702065]
[1773137706828,0.0056055,2063.1,2062.3,1.68702065]
[1773137706829,1.58197558,2063.1,2062.3,1.68702065]
[1773137707029,1.57637008,2062.9,2062.3,1.68702065]
[1773137707230,0.0056055,2063.1,2062.1,1.68702065]
[1773137707231,1.57637008,2062.7,2062.1,1.68702065]
[1773137707934,1.57637008,2062.5,2062.1,1.68702065]
[1773137710334,1.57637008,2062.9,2062.1,1.68702065]
[1773137712133,1.57637008,2062.9,2061.9,1.68702065]
[1773137713432,1.57637008,2062.7,2061.8,0.00577972]
[1773137713627,4.39732138,2062.9,2061.8,1.69280037]
[1773137713628,1.57637008,2062.5,2061.8,1.69280037]
[1773137714932,1.57637008,2063.0,2061.8,1.69280037]
[1773137715131,1.57637008,2062.8,2061.8,1.69280037]
[1773137721948,1.57637008,2062.8,2062.0,1.68702065]
[1773137722143,1.57637008,2063.0,2062.0,1.68702065]
[1773137722339,1.57637008,2063.0,2062.2,1.68702065]
[1773137724142,0.0056055,2063.1,2062.2,1.68702065]
[1773137724343,1.58197558,2063.1,2062.2,1.68702065]
[1773137729550,1.88014526,2062.9,2062.2,1.68702065]
[1773137729750,1.57637008,2062.8,2062.2,1.68702065]
[1773137730152,3.45651534,2062.9,2062.2,1.68702065]
[1773137730648,1.57637008,2063.0,2062.3,1.68702065]
[1773137733449,1.88575076,2063.1,2062.5,1.68702065]
[1773137733450,1.58197558,2063.1,2062.5,1.68702065]
[1773137733654,0.0056055,2063.1,2062.5,1.68702065]
[1773137734857,1.53137625,2063.1,2062.5,1.68702065]
[1773137738854,1.52577075,2062.8,2062.5,1.68702065]
[1773137740059,0.0056055,2063.1,2062.5,1.68702065]
[1773137740561,1.53137625,2063.1,2062.5,1.68702065]
[1773137740762,0.0056055,2063.1,2062.5,1.68702065]
[1773137743464,1.53137625,2063.1,2062.5,1.68702065]
[1773137746060,1.57660302,2062.8,2062.2,1.6564707]
[1773137748967,1.57660302,2063.0,2062.2,1.6564707]
[1773137751276,1.58220852,2063.1,2062.3,1.6564707]
[1773137753977,1.57660302,2063.4,2062.3,1.6564707]
[1773137755175,1.58049942,2063.4,2062.3,1.6564707]
[1773137755680,1.58049942,2063.4,2062.5,1.6564707]
[1773137755875,1.82280942,2063.4,2062.7,1.6564707]
[1773137757178,1.58049942,2063.4,2062.7,1.6564707]
[1773137760383,1.81885302,2063.9,2062.9,1.6564707]
[1773137761383,1.82384586,2063.9,2063.0,10.2564707]
[1773137761581,1.82384586,2063.9,2063.1,1.6564707]
[1773137762985,1.58159586,2063.9,2063.1,1.6564707]
[1773137766386,1.54546766,2063.9,2063.1,1.6564707]
[1773137769681,1.54546766,2063.9,2063.0,8.601]
[1773137769883,1.54047482,2063.7,2062.9,1.67513134]
[1773137770085,1.54047482,2063.7,2062.5,1.67513134]
[1773137771589,1.54047482,2063.6,2062.5,1.67513134]
[1773137778993,1.54047482,2063.3,2062.5,1.67513134]
[1773137783291,1.54047482,2063.1,2062.2,1.67513134]
[1773137783504,1.54047482,2063.0,2062.2,1.67513134]
[1773137799619,1.55981611,2062.8,2062.2,1.67513134]
[1773137802419,1.55981611,2062.6,2061.9,1.54039795]
[1773137802609,1.55981611,2062.2,2061.9,1.54039795]
[1773137802816,1.56381151,2062.2,2061.8,1.54617767]
[1773137803114,1.56381151,2062.2,2061.8,1.03230444]
[1773137803717,1.56381151,2062.2,2061.5,8.513]
[1773137804018,1.56381151,2062.2,2061.6,1.54039795]
[1773137804315,1.56381151,2062.2,2061.6,1.54568707]
[1773137804912,1.55981611,2062.6,2061.9,1.54039795]
[1773137805106,1.55981611,2062.6,2062.1,1.54039795]
[1773137805912,1.56483207,2062.6,2062.1,1.54039795]
[1773137807621,1.52194507,2062.4,2061.9,1.58747071]
[1773137809814,1.52696103,2062.6,2062.1,1.58747071]
[1773137812521,1.52194507,2062.8,2062.3,1.58747071]
[1773137813520,1.52775829,2062.8,2062.3,1.58747071]
[1773137813713,1.52775829,2062.8,2061.8,1.88024682]
[1773137813914,1.52775829,2062.8,2061.9,1.58747071]
[1773137814316,1.52194507,2062.6,2061.9,1.58747071]
[1773137815023,1.52194507,2062.6,2062.1,1.58747071]
[1773137824928,1.55176961,2062.8,2062.3,1.44708329]
[1773137827018,0.00581322,2062.8,2062.3,1.44708329]
[1773137827225,1.55176961,2062.8,2062.3,1.44708329]
[1773137828025,1.54595639,2062.6,2062.1,1.44708329]
[1773137828528,1.54595639,2062.6,2061.9,1.44708329]
[1773137831633,1.54595639,2062.6,2061.6,0.00528912]
[1773137831938,1.54595639,2061.6,2061.1,1.44708329]
[1773137833030,1.54595639,2061.6,2061.1,1.45092575]
[1773137835142,1.54595639,2061.6,2060.5,1.44708329]
[1773137835143,1.54595639,2061.1,2060.5,1.44708329]
[1773137835639,1.54595639,2061.5,2061.0,1.44708329]
[1773137836231,1.55200339,2061.5,2061.0,1.45091802]
[1773137836842,1.54595639,2061.6,2061.2,1.44708329]
[1773137837642,1.54595639,2061.6,2061.1,1.44708329]
[1773137838139,3.42620321,2061.2,2060.6,1.44708329]
[1773137838339,1.54595639,2061.2,2060.6,1.44708329]
[1773137839337,1.54595639,2061.2,2060.8,1.44708329]
[1773137839538,1.54595639,2061.5,2060.8,1.45207015]
[1773137839943,1.54595639,2061.3,2060.8,0.00498686]
[1773137840141,1.54595639,2060.8,2060.4,0.65933217]
[1773137840342,3.42620321,2060.5,2059.7,1.44708329]
[1773137840640,1.54595639,2060.3,2059.7,1.44708329]
[1773137840848,1.54595639,2060.5,2059.7,1.44708329]
[1773137841047,1.54595639,2060.5,2059.7,1.45266448]
[1773137841250,1.88024682,2060.4,2059.3,1.44708329]
[1773137841445,3.42620321,2059.8,2059.3,1.44708329]
[1773137841747,1.54595639,2060.9,2059.3,1.44708329]
[1773137842045,1.54595639,2060.7,2059.3,1.44708329]
[1773137842446,1.5505571,2060.7,2059.3,1.45141615]
[1773137843150,1.54595639,2060.6,2059.3,1.45141615]
[1773137843349,1.54595639,2060.4,2059.3,1.45141615]
[1773137843844,1.54595639,2060.4,2059.4,1.44708329]
[1773137844049,1.54595639,2060.6,2059.7,1.44708329]
[1773137844348,1.54595639,2060.6,2059.8,1.44708329]
[1773137845143,1.54595639,2061.2,2060.1,1.44708329]
[1773137846150,1.55210618,2061.2,2060.1,1.44708329]
[1773137848053,1.55210618,2061.2,2060.4,1.44708329]
[1773137849054,1.54595639,2061.9,2060.4,1.44708329]
[1773137850156,1.55007424,2061.9,2060.4,1.44708329]
[1773137850550,1.55007424,2061.9,2060.7,1.44708329]
[1773137852050,1.55007424,2061.9,2060.8,8.229]
[1773137852247,1.55007424,2061.9,2060.9,1.44708329]
[1773137852455,1.55007424,2061.9,2061.0,1.44708329]
[1773137855460,0.00411785,2061.9,2061.0,1.44708329]
[1773137855662,1.54417754,2062.1,2061.3,1.42048386]
[1773137856461,1.54417754,2062.1,2061.5,1.42048386]
[1773137856663,1.54922044,2062.1,2061.4,1.42048386]
[1773137858955,1.54922044,2062.1,2061.5,1.42048386]
[1773137860670,1.54922044,2062.1,2061.0,1.42048386]
[1773137860862,1.54922044,2062.1,2061.3,1.42048386]
[1773137863965,1.54922044,2062.1,2060.8,1.42473495]
[1773137864265,1.54922044,2062.1,2061.0,1.42048386]
[1773137865059,0.0050429,2062.1,2061.2,1.42048386]
[1773137865264,1.55254371,2062.8,2061.4,1.48383516]
[1773137866066,1.55254371,2062.8,2061.5,8.261]
[1773137866265,1.55747671,2062.8,2061.6,1.48383516]
[1773137868967,1.55747671,2062.8,2061.7,1.48383516]
[1773137870673,1.55254371,2062.5,2061.6,7.63232234]
[1773137870863,1.55254371,2062.0,2061.3,1.48383516]
[1773137871868,1.55254371,2062.0,2060.9,1.48383516]
[1773137873272,1.55254371,2062.0,2061.0,1.48383516]
[1773137878471,5.96365,2062.4,2060.8,1.48808625]
[1773137878472,1.55254371,2061.8,2060.8,1.48808625]
[1773137878979,1.55254371,2061.6,2060.8,1.48808625]
[1773137881775,1.55254371,2062.1,2060.8,1.48808625]
[1773137881977,1.55254371,2062.1,2061.0,1.48383516]
[1773137882978,1.55254371,2062.4,2061.0,1.48383516]
[1773137884176,1.55254371,2062.4,2060.9,0.2426]
[1773137884177,1.55254371,2062.4,2061.2,1.42952191]
[1773137884377,1.55254371,2062.4,2061.4,1.42952191]
[1773137887075,1.51360576,2062.2,2061.4,1.42952191]
[1773137888380,1.51360576,2062.7,2061.4,1.42952191]
[1773137889975,1.51360576,2062.5,2061.6,1.42952191]
[1773137894582,1.51360576,2062.5,2061.5,1.42952191]
[1773137899388,1.51360576,2062.3,2061.6,1.42952191]
[1773137905692,1.51360576,2062.4,2061.6,1.42952191]
[1773137906992,1.51360576,2062.4,2061.6,1.67203191]
[1773137909594,1.51360576,2062.4,2061.6,1.42952191]
[1773137916101,1.51360576,2062.4,2061.7,9.82963031]
[1773137916800,1.51360576,2062.4,2061.8,1.56463031]
[1773137926512,1.51360576,2062.4,2061.9,9.84663031]
[1773137927204,1.51360576,2062.4,2061.5,0.24252]
[1773137927411,1.51360576,2062.4,2061.6,9.70735116]
[1773137928511,1.51360576,2062.4,2061.6,1.42035116]
[1773137935617,1.4435283,2062.2,2061.6,1.42035116]
[1773137935823,1.4435283,2062.2,2061.6,9.72635116]
[1773137936917,1.4435283,2062.2,2061.6,1.42035116]
[1773137937122,1.4435283,2062.2,2061.6,9.72835116]
[1773137937824,1.4435283,2062.2,2061.6,1.42035116]
[1773137938024,1.4435283,2062.2,2061.6,9.73035116]
[1773137938727,1.4435283,2062.2,2061.7,1.42035116]
[1773137941828,1.42040763,2062.4,2062.2,1.8280117]
[1773137942025,1.42040763,2062.4,2061.8,1.42035116]
[1773137944330,1.42627195,2062.2,2061.7,8.326]
[1773137944531,1.42627195,2061.8,2061.4,1.41396025]
[1773137944729,1.42627195,2061.8,2061.2,8.326]
[1773137945028,1.42627195,2061.8,2061.2,9.74096025]
[1773137945029,1.42539283,2061.6,2061.2,9.74096025]
[1773137945419,1.42539283,2061.6,2061.0,1.41396025]
[1773137946423,1.42726506,2061.4,2061.0,1.41396025]
[1773137947623,1.42612511,2061.6,2061.0,1.41396025]
[1773137947828,1.42612511,2061.7,2061.0,1.41396025]
[1773137949030,1.42612511,2061.7,2061.0,9.75096025]
[1773137949931,1.42612511,2061.7,2061.1,1.41396025]
[1773137950736,1.42612511,2061.7,2061.0,8.341]
[1773137951329,1.42612511,2061.7,2061.0,9.75496025]
[1773137953534,1.42612511,2061.7,2060.9,1.41396025]
[1773137953735,1.42612511,2061.7,2060.9,9.76096025]
[1773137954027,1.42612511,2061.7,2060.8,0.00425109]
[1773137954028,1.39019418,2061.3,2060.8,0.00425109]
[1773137954227,1.38671733,2061.1,2060.4,1.41396025]
[1773137954432,0.00487917,2061.3,2059.9,0.88673801]
[1773137954433,1.38671733,2060.9,2060.2,9.75296025]
[1773137954632,1.38671733,2060.9,2060.2,1.41396025]
[1773137955030,1.38671733,2060.9,2060.0,1.41396025]
[1773137955335,1.38671733,2060.9,2060.0,1.41807091]
[1773137955632,0.24258,2061.0,2060.0,1.41807091]
[1773137955633,1.38652807,2060.7,2060.0,9.75907091]
[1773137956330,1.38652807,2060.7,2060.0,1.41807091]
[1773137956533,1.38652807,2060.7,2060.0,0.00411066]
[1773137957432,1.38652807,2060.7,2060.0,1.41807091]
[1773137959435,1.38652807,2060.7,2060.0,0.00411066]
[1773137959635,1.4041197,2060.5,2059.7,1.41396025]
[1773137960037,1.40014634,2060.3,2059.7,1.41396025]
[1773137960641,1.40014634,2060.3,2059.7,1.41766901]
[1773137962141,1.42633821,2060.8,2059.7,1.41766901]
[1773137963042,1.42633821,2060.8,2059.8,1.41396025]
[1773137963345,1.40984663,2060.6,2059.8,1.41396025]
[1773137965442,1.40819781,2060.4,2059.7,0.00370876]
[1773137965743,1.40819781,2060.2,2059.7,0.00370876]
[1773137965939,1.40819781,2060.2,2059.6,1.41396025]
[1773137965940,1.40819781,2060.2,2059.5,1.41396025]
[1773137966134,1.40819781,2060.2,2059.4,1.41396025]
[1773137967041,1.40819781,2060.2,2059.4,1.41751795]
[1773137969553,3.31785235,2060.1,2059.4,1.41751795]
[1773137969746,1.4323942,2060.1,2059.5,1.41396025]
[1773137970855,1.43317635,2060.0,2059.5,1.41396025]
[1773137971749,1.43401684,2060.2,2059.7,1.41396025]
[1773137972454,1.43478073,2060.4,2059.7,1.41396025]
[1773137972651,1.43478073,2060.4,2059.8,1.88545815]
[1773137972851,1.43478073,2060.4,2059.9,1.41396025]
[1773137974958,1.88545815,2060.7,2059.9,1.41396025]
[1773137975152,1.42200363,2060.6,2059.9,1.41396025]
[1773137976957,1.39638603,2060.2,2059.7,1.52719262]
[1773137977561,1.39638603,2060.2,2059.4,10.22301585]
[1773137977562,1.39698604,2060.0,2059.6,1.52719262]
[1773137977757,1.39698604,2060.0,2059.5,1.52719262]
[1773137982662,1.38820699,2060.2,2059.5,1.52719262]
[1773137984760,1.3902534,2060.4,2059.5,1.52719262]
[1773137987957,4.01071935,2060.7,2059.5,1.52719262]
[1773137988163,1.38005718,2060.5,2059.5,1.52719262]
[1773137988660,1.38005718,2060.5,2059.6,1.48251584]
[1773137989369,1.3833474,2060.6,2059.6,1.48251584]
[1773137989670,1.3833474,2060.7,2059.6,1.48251584]
[1773137992069,1.3833474,2060.7,2059.8,1.48251584]
[1773137992372,1.39432038,2061.0,2059.8,1.48251584]
[1773137992669,1.39432038,2060.8,2059.8,1.48251584]
[1773137998367,1.63693038,2060.8,2059.8,1.48251584]
[1773138001778,1.39432038,2060.8,2059.8,1.48251584]
[1773138002072,1.39432038,2060.8,2060.0,1.48251584]
[1773138004574,1.42250322,2060.6,2059.7,1.46199499]
[1773138006577,1.41417921,2060.4,2059.7,1.46199499]
[1773138008478,1.41417921,2060.4,2059.5,1.46199499]
[1773138009087,1.41201335,2060.3,2059.5,1.46199499]
[1773138009476,1.41244483,2060.4,2059.7,1.46199499]
[1773138009985,1.41252181,2060.2,2059.5,1.46199499]
[1773138010978,1.41252181,2060.2,2059.5,3.58890229]
[1773138011184,1.39109437,2060.6,2059.6,1.46199499]
[1773138011685,1.39109437,2060.6,2059.8,1.46199499]
[1773138013684,1.4335994,2060.9,2059.8,1.46199499]
[1773138013885,1.43354577,2060.8,2059.8,1.46199499]
[1773138028896,1.43354577,2060.8,2059.8,1.70471499]
[1773138029200,1.41853409,2061.0,2059.8,1.70471499]
[1773138031203,1.42461515,2060.8,2059.8,1.46199499]
[1773138031501,1.42461515,2060.8,2059.9,1.46199499]
[1773138032301,1.42461515,2060.8,2059.6,1.70474499]
[1773138033902,3.38222536,2061.3,2060.2,1.47621701]
[1773138034106,1.55135531,2061.3,2060.3,8.098]
[1773138034305,1.55135531,2061.3,2060.5,1.47621701]
[1773138034506,1.55135531,2061.3,2060.5,9.57321701]
[1773138035001,1.55135531,2061.3,2060.4,1.47621701]
[1773138039003,1.55135531,2061.3,2060.5,1.47621701]
[1773138040811,1.55135531,2061.3,2060.4,1.47621701]
[1773138041114,1.54647614,2061.2,2060.4,1.47621701]
[1773138043010,1.54647614,2060.9,2060.4,1.47621701]
[1773138048313,1.54647614,2060.9,2060.1,1.88339013]
[1773138048519,1.54647614,2060.7,2060.1,9.59021701]
[1773138049016,1.54647614,2060.9,2060.4,1.47621701]
[1773138049912,1.54647614,2060.9,2060.1,8.114]
[1773138049913,1.54647614,2060.9,2060.2,1.47621701]
[1773138052219,1.54647614,2060.9,2060.1,9.66724668]
[1773138052616,1.54647614,2060.9,2060.2,1.51924668]
[1773138060327,10.0,2061.0,2060.2,1.51924668]
[1773138060516,9.33815212,2061.0,2060.2,1.51924668]
[1773138060723,1.4294765,2060.9,2060.4,1.51924668]
[1773138065324,9.33815212,2061.0,2060.4,1.51924668]
[1773138065528,8.70321971,2061.0,2060.4,1.51924668]
[1773138067328,1.45923906,2060.9,2060.4,1.51924668]
[1773138068216,1.45923906,2060.9,2060.2,1.42931701]
[1773138069424,8.70321971,2061.0,2060.2,1.42931701]
[1773138069626,1.45923906,2060.9,2060.2,1.42931701]
[1773138070727,7.74947892,2061.0,2060.2,1.42931701]
[1773138070926,7.74947892,2061.0,2060.4,1.42931701]
[1773138071727,9.20871798,2061.0,2060.6,1.42931701]
[1773138073625,9.20871798,2061.0,2060.7,1.42931701]
[1773138075625,1.45923906,2060.9,2060.2,1.42931701]
[1773138075829,1.45923906,2060.9,2060.1,1.42931701]
[1773138076129,1.45923906,2060.9,2060.3,1.42931701]
[1773138079230,9.20871798,2061.0,2060.5,1.42931701]
[1773138079830,1.45923906,2060.9,2060.5,1.42931701]
[1773138080434,9.20871798,2061.0,2060.7,1.42931701]
[1773138080732,7.74947892,2061.0,2060.7,1.42931701]
[1773138081227,5.91343639,2061.0,2060.7,1.42931701]
[1773138081433,1.45923906,2060.9,2060.5,1.42931701]
[1773138081732,1.45923906,2060.9,2060.4,9.70831701]
[1773138084530,1.45923906,2060.9,2060.2,1.88283299]
[1773138084734,1.45923906,2060.9,2060.3,1.42931701]
[1773138086936,1.45923906,2060.9,2060.2,11.60115]
[1773138087435,1.45923906,2060.9,2060.3,1.42931701]
[1773138089939,1.45923906,2060.9,2060.5,1.42931701]
[1773138091536,1.45923906,2060.9,2060.4,1.42931701]
[1773138095140,1.45923906,2060.9,2060.4,9.72931701]
[1773138095941,1.45923906,2060.9,2060.5,1.47388429]
[1773138102346,1.45923906,2060.9,2060.4,8.3]
[1773138102547,1.45923906,2060.9,2060.4,9.78888429]
[1773138103550,1.45923906,2060.9,2060.5,1.47388429]
[1773138108950,5.92074573,2061.0,2060.5,1.47388429]
[1773138110361,1.4665484,2060.9,2060.5,1.47388429]
[1773138110854,5.92074573,2061.0,2060.5,1.47388429]
[1773138111055,1.4665484,2060.9,2060.5,1.47388429]
[1773138111250,5.92074573,2061.0,2060.5,1.47388429]
[1773138111656,1.4665484,2060.9,2060.5,1.47388429]
[1773138111847,1.4665484,2060.9,2060.6,1.48843525]
[1773138112251,5.92074573,2061.0,2060.6,1.48843525]
[1773138113753,4.45419733,2061.0,2060.6,1.48843525]
[1773138117358,5.92074573,2061.0,2060.6,1.48843525]
[1773138118059,4.45419733,2061.0,2060.6,1.48843525]
[1773138119062,4.24136808,2061.0,2060.6,1.48843525]
[1773138120860,0.00487917,2061.3,2060.6,1.48843525]
[1773138122259,1.47142757,2061.3,2060.6,1.48843525]
[1773138124566,1.51647081,2060.9,2060.2,1.61891331]
[1773138127876,1.51647081,2060.9,2060.2,9.97491331]
[1773138131272,1.51647081,2060.6,2059.9,9.97591331]
[1773138131976,1.51647081,2060.3,2059.7,1.61891331]
[1773138133275,1.51647081,2060.4,2059.7,1.61891331]
[1773138135176,1.51647081,2060.4,2059.8,9.98091331]
[1773138135576,1.51647081,2060.0,2059.4,1.62247101]
[1773138135874,1.51647081,2060.0,2059.5,1.61891331]
[1773138137867,1.51647081,2060.0,2059.4,8.3705577]
[1773138138070,1.51647081,2059.7,2058.5,0.24287]
[1773138138374,1.51647081,2059.4,2058.9,1.61891331]
[1773138138573,1.51647081,2059.4,2058.8,1.61891331]
[1773138139176,1.52074984,2059.4,2058.8,1.62510376]
[1773138139874,0.00427903,2059.4,2058.8,1.62510376]
[1773138140271,1.52074984,2059.4,2058.8,1.62510376]
[1773138140470,1.52074984,2059.4,2058.8,10.00310376]
[1773138140866,1.52074984,2059.4,2058.9,1.61891331]
[1773138142177,0.00427903,2059.4,2058.9,1.61891331]
[1773138143568,1.51647081,2059.8,2058.9,1.61891331]
[1773138144573,1.52112279,2059.8,2058.9,1.61891331]
[1773138144973,1.51647081,2059.7,2059.1,1.61891331]
[1773138149180,1.51647081,2059.7,2058.9,1.61891331]
[1773138149386,1.51647081,2059.7,2059.0,1.61891331]
[1773138150079,1.51647081,2059.7,2058.8,0.00619045]
[1773138150282,1.51647081,2059.4,2058.8,0.00619045]
[1773138150583,1.51647081,2059.4,2058.8,1.62510376]
[1773138152981,1.51647081,2059.7,2058.8,1.62510376]
[1773138157684,1.51647081,2059.7,2059.0,1.8834947]
[1773138157887,0.00465198,2059.8,2059.2,1.49980105]
[1773138158386,4.03854123,2060.6,2059.2,1.49980105]
[1773138158387,1.60969806,2060.1,2059.3,1.49980105]
[1773138158781,1.60969806,2060.1,2059.5,1.49980105]
[1773138159185,1.60969806,2060.2,2059.5,1.49980105]
[1773138159382,1.6132674,2060.2,2059.5,1.49980105]
[1773138163698,0.00356934,2060.2,2059.5,1.49980105]
[1773138164794,0.00356934,2060.2,2059.6,1.49980105]
[1773138165594,0.00356934,2060.2,2059.5,2.1262547]
[1773138165595,1.60969806,2060.4,2059.9,1.49980105]
[1773138166397,1.60969806,2060.6,2060.1,1.49980105]
[1773138166587,1.61524882,2060.6,2060.1,1.49980105]
[1773138167195,0.00555076,2060.6,2060.1,1.49980105]
[1773138167796,1.50632947,2060.6,2060.1,1.49980105]
[1773138167992,0.00555076,2060.6,2060.1,1.49980105]
[1773138168601,0.00555076,2060.6,2060.3,1.60002194]
[1773138168797,0.00555076,2060.6,2060.3,1.60614692]
[1773138173000,1.50632947,2060.6,2060.3,0.00255564]
[1773138173205,1.50632947,2060.6,2060.3,1.60257758]
[1773138173404,0.00555076,2060.6,2060.3,1.60257758]
[1773138174304,1.50632947,2060.6,2060.3,1.60257758]
[1773138175205,1.50632947,2060.6,2060.3,1.59757758]
[1773138176212,1.50632947,2060.6,2060.3,1.60194888]
[1773138176404,1.50077871,2060.3,2059.7,1.60002194]
[1773138176608,1.50077871,2060.3,2059.7,10.01202194]
[1773138176806,1.50077871,2060.3,2059.8,1.60002194]
[1773138177406,1.50077871,2060.3,2059.8,1.60554886]
[1773138177607,1.50077871,2059.9,2059.3,10.01302194]
[1773138177906,1.50077871,2059.9,2059.4,1.60002194]
[1773138178711,1.50077871,2059.9,2059.4,1.6046751]
[1773138179609,1.50077871,2060.1,2059.5,1.60002194]
[1773138180312,1.50077871,2060.1,2059.7,1.60002194]
[1773138181408,1.50077871,2060.3,2059.7,1.60002194]
[1773138183611,1.50077871,2060.3,2059.5,1.57272753]
[1773138183811,1.50077871,2060.3,2059.4,1.57738069]
[1773138184015,1.57742696,2060.1,2059.4,1.57738069]
[1773138184520,1.57742696,2060.1,2059.4,0.00465316]
[1773138188017,1.57742696,2060.1,2059.4,1.57738069]
[1773138189724,1.57742696,2060.1,2058.7,10.0691089]
[1773138189725,1.57742696,2059.9,2059.1,1.57272753]
[1773138190622,1.57742696,2059.9,2059.1,1.576502]
[1773138203126,1.82014696,2059.9,2059.1,1.576502]
[1773138203627,1.57742696,2059.7,2059.1,1.576502]
[1773138205530,1.57742696,2059.7,2059.1,3.46239526]
[1773138205732,1.57742696,2059.7,2059.2,1.57272753]
[1773138207736,1.57742696,2059.9,2059.4,1.57272753]